fUST/lending_fUST_20240222
["ID","MTS","AMOUNT","RATE_DAILY","PERIOD"]
[314693428,1708531843494,-598.38,0.00020246,2]
[314693429,1708531843504,-500.0,0.00020246,2]
[314693430,1708531843513,-500.0,0.00020246,2]
[314693431,1708531843523,-640.89287761,0.00020246,2]
[314693432,1708531843533,-2555.29937825,0.00020246,2]
[314693433,1708531843545,-293.91062175,0.00020246,2]
[314693434,1708531843555,-500.0,0.00020246,2]
[314693435,1708531843564,-500.0,0.00020246,2]
[314693437,1708531843574,-280.10137825,0.00020246,2]
[314693438,1708531843593,-519.9999997,0.00020246,2]
[314693440,1708531843611,-1832.0,0.00020246,2]
[314693567,1708531846455,-479.00862205,0.00020246,2]
[314693569,1708531846465,-473.41755083,0.00020246,2]
[314693575,1708531846509,-7501.53244917,0.00020246,2]
[314693577,1708531846519,-500.0,0.00020246,2]
[314693579,1708531846529,-500.0,0.00020246,2]
[314693581,1708531846539,-5424.08,0.00020246,2]
[314693584,1708531846550,-627.59,0.00020246,2]
[314693586,1708531846560,-1616.96,0.00020246,2]
[314693588,1708531846570,-500.0,0.00020246,2]
[314693590,1708531846581,-500.0,0.00020246,2]
[314693592,1708531846591,-500.0,0.00020247,2]
[314693594,1708531846601,-3100.21,0.00020247,2]
[314693596,1708531846611,-1492.88,0.00020247,2]
[314693598,1708531846621,-3505.61,0.00020247,2]
[314693600,1708531846631,-500.0,0.00020247,2]
[314693602,1708531846641,-500.0,0.00020247,2]
[314693604,1708531846653,-500.0,0.00020247,2]
[314693606,1708531846662,-500.0,0.00020247,2]
[314693608,1708531846672,-500.0,0.00020247,2]
[314693610,1708531846681,-2011.81856553,0.0002042,2]
[314693612,1708531846690,-2685.19129972,0.000205,2]
[314693614,1708531846700,-1000.0,0.000205,2]
[314693616,1708531846710,-679.49,0.00020508,3]
[314693618,1708531846719,-1210.44,0.00020518,2]
[314693620,1708531846729,-546.0,0.00020518,2]
[314693622,1708531846738,-500.0,0.00020518,2]
[314693624,1708531846748,-610.95,0.00020518,2]
[314693626,1708531846758,-12035.3,0.00020518,2]
[314693628,1708531846768,-503.95,0.00020518,2]
[314693631,1708531846777,-500.0,0.00020519,2]
[314693633,1708531846786,-1265.82,0.00020519,2]
[314693635,1708531846796,-500.0,0.00020519,2]
[314693637,1708531846806,-500.0,0.00020519,2]
[314693639,1708531846816,-1588.89,0.00020519,2]
[314693641,1708531846829,-883.69,0.00020519,2]
[314693643,1708531846838,-500.0,0.00020519,2]
[314693645,1708531846848,-500.0,0.00020519,2]
[314693647,1708531846858,-500.0,0.00020519,2]
[314693649,1708531846868,-500.0,0.00020519,2]
[314693651,1708531846877,-294.29829933,0.00020519,2]
[314693653,1708531846889,-205.70170067,0.00020519,2]
[314693655,1708531846904,-869.1,0.00020519,2]
[314693657,1708531846914,-719.52,0.00020519,2]
[314693659,1708531846923,-4708.97,0.00020519,2]
[314693661,1708531846932,-3065.88,0.00020519,2]
[314693663,1708531846942,-500.0,0.00020519,2]
[314693666,1708531846951,-500.0,0.00020519,2]
[314693668,1708531846961,-2221.71,0.00020519,2]
[314693670,1708531846971,-500.0,0.00020519,2]
[314693672,1708531846980,-1397.69,0.00020519,2]
[314693674,1708531846990,-1464.93530202,0.00020519,2]
[314693676,1708531847000,-538.35,0.00020519,2]
[314693678,1708531847009,-500.0,0.00020519,2]
[314693680,1708531847021,-703.88,0.00020519,2]
[314693682,1708531847030,-500.0,0.00020519,2]
[314693684,1708531847040,-1596.3,0.00020519,2]
[314693686,1708531847049,-500.0,0.00020519,2]
[314693688,1708531847058,-533.18850347,0.00020519,2]
[314693690,1708531847067,-1112.71,0.00020519,2]
[314693692,1708531847077,-500.0,0.0002052,2]
[314693694,1708531847086,-593.09449348,0.0002052,2]
[314693696,1708531847097,-632.77,0.0002052,2]
[314693698,1708531847107,-500.0,0.0002052,2]
[314693700,1708531847116,-500.0,0.0002052,2]
[314693702,1708531847126,-874.58,0.0002052,2]
[314693704,1708531847135,-500.0,0.0002052,2]
[314693706,1708531847146,-500.0,0.0002052,2]
[314693708,1708531847155,-500.0,0.0002052,2]
[314693710,1708531847165,-500.0,0.0002052,2]
[314693712,1708531847174,-500.0,0.0002052,2]
[314693714,1708531847184,-500.0,0.0002052,2]
[314693716,1708531847194,-500.0,0.0002052,2]
[314693718,1708531847203,-253.26044084,0.0002052,2]
[314693720,1708531847213,-713.44,0.0002052,2]
[314693723,1708531847222,-500.0,0.0002052,2]
[314693725,1708531847232,-500.0,0.0002052,2]
[314693727,1708531847241,-500.0,0.0002052,2]
[314693729,1708531847250,-500.0,0.0002052,2]
[314693731,1708531847260,-1455.17,0.0002052,2]
[314693733,1708531847269,-500.0,0.0002052,2]
[314693735,1708531847278,-500.0,0.0002052,2]
[314693737,1708531847287,-500.0,0.0002052,2]
[314693739,1708531847296,-191.23628942,0.0002052,2]
[314694024,1708531851198,-308.76371058,0.0002052,2]
[314694026,1708531851209,-500.0,0.0002052,2]
[314694028,1708531851218,-708.58,0.0002052,2]
[314694030,1708531851228,-500.0,0.0002052,2]
[314694032,1708531851238,-598.38,0.0002052,2]
[314694034,1708531851247,-500.0,0.0002052,2]
[314694036,1708531851256,-500.0,0.0002052,2]
[314694038,1708531851266,-2849.21,0.0002052,2]
[314694040,1708531851276,-500.0,0.0002052,2]
[314694042,1708531851286,-500.0,0.0002052,2]
[314694044,1708531851296,-3111.11,0.0002052,2]
[314694046,1708531851306,-7974.95,0.0002052,2]
[314694048,1708531851316,-500.0,0.0002052,2]
[314694050,1708531851325,-500.0,0.0002052,2]
[314694052,1708531851334,-5424.08,0.0002052,2]
[314694055,1708531851344,-627.59,0.0002052,2]
[314694057,1708531851354,-1616.96,0.0002052,2]
[314694059,1708531851363,-389.13060846,0.0002052,2]
[314694061,1708531851372,-500.0,0.0002052,2]
[314694063,1708531851381,-500.0,0.00020521,2]
[314694065,1708531851391,-3100.21,0.00020521,2]
[314694067,1708531851402,-1492.88,0.00020521,2]
[314694069,1708531851411,-3505.61,0.00020521,2]
[314694071,1708531851421,-500.0,0.00020521,2]
[314694073,1708531851430,-500.0,0.00020521,2]
[314694075,1708531851440,-500.0,0.00020521,2]
[314694076,1708531851449,-518.37264733,0.00020521,2]
[314694077,1708531851459,-960.67071164,0.00020524,2]
[314694078,1708531851469,-25938.73240847,0.00020533,2]
[314694079,1708531851478,-5000.0,0.00020533,2]
[314694080,1708531851488,-5000.0,0.00020533,2]
[314694081,1708531851498,-5000.0,0.00020533,2]
[314694082,1708531851507,-903.09260618,0.00020533,2]
[314694092,1708531851679,500.0,0.00019697,2]
[314694166,1708531859043,500.0,0.00019697,2]
[314694167,1708531859344,500.0,0.00019971,2]
[314694168,1708531862949,993.05,0.00019697,2]
[314694169,1708531863226,993.05,0.00019971,2]
[314694170,1708531864620,594.53,0.00019697,2]
[314694171,1708531864893,594.53,0.00019971,2]
[314694172,1708531868076,500.0,0.00019696,2]
[314694173,1708531868404,6645.8,0.00019697,2]
[314694174,1708531868496,500.0,0.0001997,2]
[314694175,1708531868674,6645.8,0.00019971,2]
[314694176,1708531876401,2583.51,0.00019698,2]
[314694177,1708531876667,2583.51,0.00019972,2]
[314694178,1708531885894,500.0,0.00019697,2]
[314694179,1708531886493,500.0,0.00019971,2]
[314694180,1708531887602,1244.07,0.00019698,2]
[314694181,1708531887894,1244.07,0.00019972,2]
[314694182,1708531890120,500.0,0.00019697,2]
[314694183,1708531890241,500.0,0.00019971,2]
[314694184,1708531893114,500.0,0.00019696,2]
[314694185,1708531893365,500.0,0.0001997,2]
[314694186,1708531902113,4520.07,0.00019697,2]
[314694187,1708531902393,4520.07,0.00019971,2]
[314694188,1708531903256,2921.34,0.00019698,2]
[314694189,1708531903301,500.0,0.00019696,2]
[314694190,1708531903454,1967.80831181,0.00019972,2]
[314694191,1708532226101,385.95109617,0.000189,2]
[314694192,1708532248538,169.192561,0.00019178,2]
[314694193,1708532266057,176.6995601,0.00018763,2]
[314694195,1708532827562,257.30073078,0.000189,2]
[314694196,1708532876532,328.17635341,0.00019477,2]
[314694326,1708533041086,-261.67910799,0.00019565,2]
[314694327,1708533041097,-639.82470976,0.00019566,2]
[314694328,1708533041107,-263.76521324,0.00019597,2]
[314694329,1708533041116,-1304.56,0.00019687,3]
[314694330,1708533041127,-1087.14,0.00019687,3]
[314694331,1708533041136,-905.95,0.00019687,3]
[314694332,1708533041146,-1008.7,0.00019695,2]
[314694333,1708533041156,-500.0,0.00019695,2]
[314694334,1708533041165,-500.0,0.00019695,2]
[314694335,1708533041175,-11135.65,0.00019695,2]
[314694336,1708533041184,-11032.42,0.00019695,2]
[314694337,1708533041194,-343.90916025,0.00019695,2]
[314694338,1708533041207,-509.12,0.00019695,2]
[314694339,1708533041216,-500.0,0.00019695,2]
[314694340,1708533041225,-599.6,0.00019695,2]
[314694341,1708533041234,-500.0,0.00019696,2]
[314694342,1708533041244,-500.0,0.00019696,2]
[314694343,1708533041254,-736.41,0.00019696,2]
[314694344,1708533041262,-500.0,0.00019696,2]
[314694345,1708533041271,-500.0,0.00019696,2]
[314694346,1708533041282,-1054.85,0.00019696,2]
[314694347,1708533041291,-500.0,0.00019696,2]
[314694348,1708533041300,-586.57,0.00019696,2]
[314694349,1708533041309,-500.0,0.00019696,2]
[314694350,1708533041318,-1005.15,0.00019696,2]
[314694351,1708533041327,-500.0,0.00019696,2]
[314694352,1708533041337,-500.0,0.00019696,2]
[314694353,1708533041346,-500.0,0.00019696,2]
[314694354,1708533041355,-500.0,0.00019696,2]
[314694355,1708533041364,-500.0,0.00019696,2]
[314694356,1708533041373,-500.0,0.00019696,2]
[314694357,1708533041383,-502.17446308,0.00019696,2]
[314694358,1708533041392,-500.0,0.00019696,2]
[314694359,1708533041401,-500.0,0.00019696,2]
[314694360,1708533041410,-500.0,0.00019696,2]
[314694361,1708533041419,-500.0,0.00019696,2]
[314694362,1708533041429,-539.35,0.00019696,2]
[314694363,1708533041438,-776.94,0.00019696,2]
[314694364,1708533041447,-500.0,0.00019696,2]
[314694365,1708533041457,-500.0,0.00019696,2]
[314694366,1708533041467,-500.0,0.00019696,2]
[314694367,1708533041477,-500.0,0.00019696,2]
[314694368,1708533041486,-500.0,0.00019696,2]
[314694369,1708533041495,-500.0,0.00019696,2]
[314694370,1708533041504,-600.75530156,0.00019696,2]
[314694371,1708533041514,-500.0,0.00019696,2]
[314694372,1708533041523,-500.0,0.00019696,2]
[314694373,1708533041532,-927.26,0.00019696,2]
[314694374,1708533041541,-500.0,0.00019696,2]
[314694375,1708533041550,-417.160166,0.00019696,2]
[314694376,1708533041559,-724.25,0.00019696,2]
[314694377,1708533041568,-500.0,0.00019696,2]
[314694378,1708533041577,-500.0,0.00019696,2]
[314694379,1708533041587,-500.0,0.00019696,2]
[314694380,1708533041595,-500.0,0.00019696,2]
[314694381,1708533041605,-500.0,0.00019696,2]
[314694382,1708533041614,-1357.76,0.00019696,2]
[314694383,1708533041623,-784.21,0.00019696,2]
[314694384,1708533041632,-3924.15,0.00019696,2]
[314694385,1708533041642,-500.0,0.00019696,2]
[314694386,1708533041651,-500.0,0.00019696,2]
[314694387,1708533041660,-2554.9,0.00019696,2]
[314694388,1708533041669,-1081.3,0.00019696,2]
[314694389,1708533041678,-500.0,0.00019696,2]
[314694390,1708533041687,-1851.42,0.00019696,2]
[314694391,1708533041697,-2592.6,0.00019696,2]
[314694392,1708533041706,-500.0,0.00019696,2]
[314694393,1708533041715,-1164.74,0.00019696,2]
[314694394,1708533041725,-500.0,0.00019697,2]
[314694395,1708533041734,-500.0,0.00019697,2]
[314694396,1708533041743,-500.0,0.00019697,2]
[314694397,1708533041752,-500.0,0.00019697,2]
[314694398,1708533041762,-500.0,0.00019697,2]
[314694399,1708533041771,-501.7147221,0.00019697,2]
[314694400,1708533041782,-500.0,0.00019697,2]
[314694401,1708533041791,-500.0,0.00019697,2]
[314694402,1708533041801,-500.0,0.00019697,2]
[314694403,1708533041810,-1212.64,0.00019697,2]
[314694406,1708533041941,-500.0,0.00019697,2]
[314694407,1708533041954,-510.27370218,0.00019697,2]
[314694408,1708533041963,-500.0,0.00019697,2]
[314694409,1708533041974,-500.0,0.00019697,2]
[314694410,1708533041983,-500.0,0.00019697,2]
[314694411,1708533041992,-500.0,0.00019697,2]
[314694412,1708533042002,-500.0,0.00019697,2]
[314694413,1708533042011,-500.0,0.00019697,2]
[314694414,1708533042020,-500.0,0.00019697,2]
[314694415,1708533042029,-637.27,0.00019697,2]
[314694416,1708533042038,-500.0,0.00019697,2]
[314694417,1708533042048,-500.0,0.00019697,2]
[314694418,1708533042057,-274.05284249,0.00019697,2]
[314694419,1708533042066,-500.0,0.00019697,2]
[314694420,1708533042076,-500.0,0.00019697,2]
[314694421,1708533042085,-263.76521324,0.00019802,2]
[314694422,1708533042095,-1008.7,0.00019969,2]
[314694423,1708533042104,-500.0,0.00019969,2]
[314694424,1708533042113,-500.0,0.00019969,2]
[314694425,1708533042123,-1852.82713497,0.00019969,2]
[314694426,1708533042135,-1959.18525206,0.00019969,2]
[314694427,1708533042327,-276.12381758,0.00019969,2]
[314694431,1708533044464,-4592.68225,0.00019969,2]
[314694432,1708533044479,-2454.83154539,0.00019969,2]
[314694433,1708533044488,-1657.96260708,0.00019969,2]
[314694445,1708533418624,60000.0,0.0003,120]
[314694490,1708534233191,-261.67910799,0.00019579,2]
[314694491,1708534233200,-517.6908861,0.00019587,2]
[314694492,1708534233245,-122.13382366,0.00019587,2]
[314694493,1708534233254,-1648.38494515,0.00019589,2]
[314694494,1708534233266,-607.15228137,0.00019589,2]
[314694495,1708534233275,-158.25912796,0.00019595,2]
[314694496,1708534233283,-391.34,0.00019685,3]
[314694497,1708534233293,-689.73,0.00019685,3]
[314694498,1708534233301,-470.07124324,0.00019685,3]
[314694660,1708534242719,-104.70875676,0.00019685,3]
[314694662,1708534242728,-165.31020658,0.00019685,3]
[314694680,1708534246138,-200.39853429,0.00019693,2]
[314694681,1708534246149,-500.0,0.00019693,2]
[314694682,1708534246160,-500.0,0.00019694,2]
[314694683,1708534246171,-1010.9,0.00019694,2]
[314694684,1708534246181,-500.0,0.00019694,2]
[314694685,1708534246191,-500.0,0.00019694,2]
[314694686,1708534246201,-500.0,0.00019694,2]
[314694687,1708534246211,-500.0,0.00019694,2]
[314694688,1708534246221,-500.0,0.00019694,2]
[314694689,1708534246231,-959.35,0.00019694,2]
[314694690,1708534246242,-500.0,0.00019694,2]
[314694691,1708534246253,-10908.99,0.00019694,2]
[314694692,1708534246263,-500.0,0.00019694,2]
[314694693,1708534246272,-11157.75,0.00019694,2]
[314694694,1708534246281,-500.0,0.00019694,2]
[314694695,1708534246291,-500.0,0.00019694,2]
[314694696,1708534246300,-500.0,0.00019694,2]
[314694697,1708534246309,-500.0,0.00019694,2]
[314694698,1708534246319,-500.0,0.00019694,2]
[314694699,1708534246328,-1104.37,0.00019694,2]
[314694700,1708534246337,-500.0,0.00019694,2]
[314694701,1708534246347,-756.02,0.00019694,2]
[314694702,1708534246357,-500.0,0.00019694,2]
[314694703,1708534246367,-500.0,0.00019694,2]
[314694704,1708534246377,-500.0,0.00019694,2]
[314694705,1708534246386,-617.73,0.00019694,2]
[314694706,1708534246397,-500.0,0.00019694,2]
[314694707,1708534246408,-575.07,0.00019694,2]
[314694708,1708534246417,-500.0,0.00019694,2]
[314694709,1708534246426,-500.0,0.00019694,2]
[314694710,1708534246435,-500.0,0.00019694,2]
[314694711,1708534246445,-1395.32,0.00019694,2]
[314694712,1708534246454,-500.0,0.00019694,2]
[314694713,1708534246465,-500.0,0.00019694,2]
[314694714,1708534246474,-797.38,0.00019694,2]
[314694715,1708534246484,-500.0,0.00019694,2]
[314694716,1708534246494,-500.0,0.00019694,2]
[314694717,1708534246503,-500.0,0.00019694,2]
[314694718,1708534246513,-1079.36,0.00019694,2]
[314694719,1708534246522,-500.0,0.00019695,2]
[314694720,1708534246532,-562.13,0.00019695,2]
[314694721,1708534246541,-500.0,0.00019695,2]
[314694722,1708534246551,-963.26,0.00019695,2]
[314694723,1708534246564,-500.0,0.00019695,2]
[314694724,1708534246573,-500.0,0.00019695,2]
[314694725,1708534246583,-516.87,0.00019695,2]
[314694726,1708534246592,-500.0,0.00019695,2]
[314694727,1708534246604,-174.74393213,0.00019695,2]
[314694728,1708534246613,-500.0,0.00019695,2]
[314694729,1708534246623,-500.0,0.00019695,2]
[314694730,1708534246633,-500.0,0.00019695,2]
[314694731,1708534246646,-591.35,0.00019695,2]
[314694732,1708534246656,-590.49,0.00019695,2]
[314694733,1708534246665,-500.0,0.00019695,2]
[314694734,1708534246675,-800.53,0.00019695,2]
[314694735,1708534246684,-500.0,0.00019695,2]
[314694736,1708534246693,-500.0,0.00019695,2]
[314694737,1708534246703,-500.0,0.00019695,2]
[314694738,1708534246713,-500.0,0.00019695,2]
[314694739,1708534246723,-500.0,0.00019695,2]
[314694740,1708534246732,-276.73207212,0.00019695,2]
[314694741,1708534246741,-500.0,0.00019695,2]
[314694742,1708534246750,-500.0,0.00019695,2]
[314694743,1708534246760,-2521.56,0.00019695,2]
[314694744,1708534246769,-500.0,0.00019695,2]
[314694745,1708534246779,-500.0,0.00019695,2]
[314694746,1708534246789,-181.31327599,0.00019695,2]
[314694747,1708534246798,-500.0,0.00019695,2]
[314694748,1708534246808,-500.0,0.00019695,2]
[314694749,1708534246818,-1446.12,0.00019695,2]
[314694750,1708534246827,-500.0,0.00019695,2]
[314694751,1708534246837,-500.0,0.00019695,2]
[314694752,1708534246846,-500.0,0.00019695,2]
[314694753,1708534246855,-500.0,0.00019695,2]
[314694754,1708534246865,-500.0,0.00019695,2]
[314694755,1708534246874,-6606.0,0.00019695,2]
[314694756,1708534246884,-500.0,0.00019695,2]
[314694757,1708534246894,-500.0,0.00019695,2]
[314694758,1708534246903,-4234.61,0.00019695,2]
[314694759,1708534246912,-500.0,0.00019695,2]
[314694760,1708534246922,-1162.12,0.00019695,2]
[314694761,1708534246932,-232.63178787,0.00019695,2]
[314694762,1708534246941,-500.0,0.00019695,2]
[314694763,1708534246952,-500.0,0.00019695,2]
[314694764,1708534246964,-500.0,0.00019695,2]
[314694765,1708534246974,-749.29,0.00019695,2]
[314694766,1708534246986,-1444.24,0.00019695,2]
[314694767,1708534246995,-4038.5,0.00019695,2]
[314694768,1708534247005,-2631.93,0.00019695,2]
[314694769,1708534247014,-500.0,0.00019695,2]
[314694770,1708534247024,-500.0,0.00019695,2]
[314694771,1708534247033,-548.79,0.00019695,2]
[314694772,1708534247043,-1904.36,0.00019695,2]
[314694773,1708534247053,-2520.35,0.00019695,2]
[314694774,1708534247063,-1213.77,0.00019695,2]
[314694775,1708534247072,-586.20253158,0.00019695,2]
[314694776,1708534247081,-2879.92,0.00019695,2]
[314694777,1708534247091,-500.0,0.00019695,2]
[314694778,1708534247101,-500.0,0.00019695,2]
[314694779,1708534247111,-500.0,0.00019695,2]
[314694780,1708534247121,-1213.45,0.00019695,2]
[314694781,1708534247130,-500.0,0.00019695,2]
[314694782,1708534247140,-648.72,0.00019695,2]
[314694783,1708534247150,-500.0,0.00019696,2]
[314694784,1708534247159,-500.0,0.00019696,2]
[314694785,1708534247169,-500.0,0.00019696,2]
[314694786,1708534247180,-500.0,0.00019696,2]
[314694787,1708534247191,-500.0,0.00019696,2]
[314694788,1708534247201,-500.0,0.00019696,2]
[314694789,1708534247211,-500.0,0.00019696,2]
[314694790,1708534247221,-158.25912794,0.00019732,2]
[314694791,1708534247230,-158.25912794,0.00019869,2]
[314694792,1708534247240,-150.192,0.00019925,2]
[314694793,1708534247249,-500.0,0.00019967,2]
[314694794,1708534247259,-178.17000754,0.00019968,2]
[314694795,1708534247268,-1010.9,0.00019968,2]
[314694796,1708534247277,-500.0,0.00019968,2]
[314694797,1708534247286,-500.0,0.00019968,2]
[314694798,1708534247296,-500.0,0.00019968,2]
[314694799,1708534247305,-959.35,0.00019968,2]
[314694800,1708534247314,-10908.99,0.00019968,2]
[314694801,1708534247324,-500.0,0.00019968,2]
[314694802,1708534247334,-11157.75,0.00019968,2]
[314694803,1708534247345,-500.0,0.00019968,2]
[314694804,1708534247355,-500.0,0.00019968,2]
[314694805,1708534247366,-500.0,0.00019968,2]
[314694806,1708534247377,-1104.37,0.00019968,2]
[314694807,1708534247388,-756.02,0.00019968,2]
[314694808,1708534247399,-500.0,0.00019968,2]
[314694809,1708534247409,-617.73,0.00019968,2]
[314694810,1708534247419,-500.0,0.00019968,2]
[314694811,1708534247429,-575.07,0.00019968,2]
[314694812,1708534247440,-500.0,0.00019968,2]
[314694813,1708534247449,-500.0,0.00019968,2]
[314694814,1708534247458,-1395.32,0.00019968,2]
[314694815,1708534247470,-797.38,0.00019968,2]
[314694816,1708534247479,-500.0,0.00019968,2]
[314694817,1708534247488,-500.0,0.00019968,2]
[314694818,1708534247498,-1079.36,0.00019968,2]
[314694819,1708534247508,-500.0,0.00019969,2]
[314694820,1708534247517,-562.13,0.00019969,2]
[314694821,1708534247526,-500.0,0.00019969,2]
[314694822,1708534247535,-963.26,0.00019969,2]
[314694823,1708534247545,-500.0,0.00019969,2]
[314694824,1708534247556,-500.0,0.00019969,2]
[314694825,1708534247566,-516.87,0.00019969,2]
[314694826,1708534247575,-500.0,0.00019969,2]
[314694827,1708534247585,-500.0,0.00019969,2]
[314694828,1708534247594,-500.0,0.00019969,2]
[314694829,1708534247603,-591.35,0.00019969,2]
[314694830,1708534247613,-590.49,0.00019969,2]
[314694831,1708534247622,-500.0,0.00019969,2]
[314694832,1708534247634,-800.53,0.00019969,2]
[314694833,1708534247644,-500.0,0.00019969,2]
[314694834,1708534247653,-500.0,0.00019969,2]
[314694835,1708534247662,-500.0,0.00019969,2]
[314694836,1708534247672,-500.0,0.00019969,2]
[314694837,1708534247681,-500.0,0.00019969,2]
[314694838,1708534247691,-2521.56,0.00019969,2]
[314694839,1708534247701,-500.0,0.00019969,2]
[314694840,1708534247712,-1446.12,0.00019969,2]
[314694841,1708534247721,-2665.45,0.00019969,2]
[314694842,1708534247732,-500.0,0.00019969,2]
[314694843,1708534247742,-500.0,0.00019969,2]
[314694844,1708534247751,-500.0,0.00019969,2]
[314694845,1708534247761,-6606.0,0.00019969,2]
[314694846,1708534247771,-500.0,0.00019969,2]
[314694847,1708534247780,-1327.53639453,0.00019969,2]
[314694901,1708534551935,3000.0,0.00019,2]
[314694917,1708534631829,171.53382052,0.000189,2]
[314694920,1708534749133,3000.0,0.00019,2]
[314694921,1708534769068,1360.0,0.00019,2]
[314694958,1708535431997,-639.82470976,0.00019592,2]
[314694959,1708535432007,-158.25912794,0.00019593,2]
[314694960,1708535432016,-451.43,0.00019683,3]
[314694961,1708535432025,-354.71660943,0.00019683,3]
[314695171,1708535439517,-21.47339057,0.00019683,3]
[314695173,1708535439527,-313.49,0.00019683,3]
[314695175,1708535439536,-500.0,0.00019692,2]
[314695177,1708535439546,-174.59263485,0.00019692,2]
[314695179,1708535439555,-500.0,0.00019692,2]
[314695181,1708535439564,-500.0,0.00019692,2]
[314695183,1708535439573,-3826.44397458,0.00019692,2]
[314695352,1708535441307,-3474.27547513,0.00019692,2]
[314695354,1708535441319,-359.76950152,0.00019692,2]
[314695528,1708535442994,-1130.0000001,0.00019692,2]
[314695833,1708535446059,-261.24,0.00019683,3]
[314695835,1708535446069,-2108.08104867,0.00019692,2]
[314695837,1708535446078,-11150.63,0.00019692,2]
[314695839,1708535446087,-573.09,0.00019692,2]
[314695841,1708535446097,-500.0,0.00019692,2]
[314695843,1708535446106,-500.0,0.00019692,2]
[314695845,1708535446115,-500.0,0.00019692,2]
[314695847,1708535446125,-500.0,0.00019692,2]
[314695849,1708535446134,-989.41,0.00019692,2]
[314695851,1708535446144,-677.67,0.00019692,2]
[314695853,1708535446153,-333.75859602,0.00019693,2]
[314695855,1708535446162,-500.0,0.00019693,2]
[314695857,1708535446171,-500.0,0.00019693,2]
[314695859,1708535446180,-500.0,0.00019693,2]
[314695861,1708535446189,-500.0,0.00019693,2]
[314695863,1708535446198,-500.0,0.00019693,2]
[314695865,1708535446207,-500.0,0.00019693,2]
[314695867,1708535446216,-500.0,0.00019693,2]
[314695868,1708535446226,-926.66,0.00019693,2]
[314695870,1708535446235,-500.0,0.00019693,2]
[314695872,1708535446245,-543.85678727,0.00019693,2]
[314695875,1708535446256,-500.0,0.00019693,2]
[314695877,1708535446265,-214.50704961,0.00019693,2]
[314695879,1708535446274,-500.0,0.00019693,2]
[314695881,1708535446284,-500.0,0.00019693,2]
[314695883,1708535446294,-500.0,0.00019693,2]
[314695885,1708535446303,-673.11,0.00019693,2]
[314695887,1708535446312,-500.0,0.00019693,2]
[314695889,1708535446321,-583.96,0.00019693,2]
[314695891,1708535446330,-500.0,0.00019693,2]
[314695892,1708535446340,-500.0,0.00019693,2]
[314695894,1708535446349,-500.0,0.00019693,2]
[314695896,1708535446359,-500.0,0.00019693,2]
[314695899,1708535446368,-500.0,0.00019693,2]
[314695900,1708535446379,-500.0,0.00019693,2]
[314695903,1708535446389,-500.0,0.00019693,2]
[314695905,1708535446398,-755.25,0.00019693,2]
[314695907,1708535446407,-500.0,0.00019693,2]
[314695909,1708535446416,-500.0,0.00019693,2]
[314695911,1708535446425,-500.0,0.00019693,2]
[314695912,1708535446434,-500.0,0.00019693,2]